bitfinex/quotes_SOLUSD_20250617
["timestamp","ask_amount","ask_price","bid_price","bid_amount"]
[1750127812311,6.08,151.52,151.51,6.06311693]
[1750127812916,6.08,151.52,151.5,6.06311693]
[1750127813719,6.08,151.52,151.51,6.06311693]
[1750127814597,33.76,151.59,151.57,6.06311693]
[1750127814992,6.2,151.59,151.58,6.06311693]
[1750127815188,6.2,151.59,151.57,6.06311693]
[1750127816220,6.2,151.59,151.57,12.66070267]
[1750127816723,27.6,151.61,151.58,6.06311693]
[1750127816901,6.2,151.62,151.59,6.06311693]
[1750127816902,33.8,151.62,151.59,6.06311693]
[1750127817300,6.2,151.62,151.6,6.06311693]
[1750127817502,6.2,151.62,151.57,8.09888574]
[1750127817696,6.2,151.62,151.59,6.06311693]
[1750127818316,6.2,151.62,151.61,6.06311693]
[1750127818800,6.2,151.62,151.6,6.06311693]
[1750127819118,6.2,151.62,151.59,12.65966699]
[1750127821196,6.2,151.62,151.6,6.06311693]
[1750127821705,6.06311693,151.65,151.6,6.06311693]
[1750127821904,79.86,151.66,151.61,6.06311693]
[1750127822094,6.11709653,151.71,151.68,26.0]
[1750127822296,11.07327186,151.72,151.68,26.0]
[1750127822522,4.87327186,151.74,151.65,26.0]
[1750127822698,19.803941,151.76,151.67,26.0]
[1750127822898,6.06311693,151.76,151.72,6.06311693]
[1750127823100,6.06311693,151.76,151.71,6.06311693]
[1750127823521,27.74,151.77,151.72,6.06311693]
[1750127823695,6.06311693,151.78,151.71,8.1493]
[1750127823902,6.58848333,151.78,151.72,32.06311693]
[1750127824108,34.32807592,151.79,151.72,32.06311693]
[1750127824310,40.39128366,151.79,151.74,6.06311693]
[1750127824623,34.32816673,151.79,151.73,6.06311693]
[1750127824823,6.06311693,151.78,151.74,6.06311693]
[1750127825243,34.44807596,151.79,151.74,6.06311693]
[1750127825699,6.06311693,151.78,151.74,6.06311693]
[1750127825900,34.44807596,151.79,151.73,6.06311693]
[1750127826098,34.44807596,151.79,151.74,6.06311693]
[1750127826312,6.06311693,151.77,151.73,6.06311693]
[1750127826502,6.06311693,151.78,151.73,6.06311693]
[1750127826911,6.06311693,151.77,151.72,32.59089177]
[1750127827112,6.06311693,151.75,151.72,26.0]
[1750127828299,27.88,151.76,151.72,26.0]
[1750127828498,33.94311693,151.76,151.72,26.0]
[1750127828707,6.06311693,151.75,151.72,26.0]
[1750127829015,33.94311693,151.76,151.72,26.0]
[1750127829214,6.06311693,151.75,151.72,26.0]
[1750127829420,27.88,151.76,151.72,26.0]
[1750127829735,6.06311693,151.75,151.72,26.0]
[1750127830722,34.46944989,151.76,151.72,26.0]
[1750127830916,6.06311693,151.75,151.72,26.0]
[1750127831920,18.933972,151.72,151.65,6.5941211]
[1750127832113,6.06311693,151.68,151.64,18.79705117]
[1750127832311,27.9,151.71,151.64,12.65765117]
[1750127832312,6.06311693,151.69,151.64,12.65765117]
[1750127832519,6.06311693,151.69,151.67,26.0]
[1750127832906,27.9,151.71,151.67,26.0]
[1750127833112,6.06311693,151.69,151.67,26.0]
[1750127835112,6.06311693,151.68,151.67,26.0]
[1750127835636,27.9,151.71,151.67,26.0]
[1750127835832,6.06311693,151.7,151.67,26.0]
[1750127837014,6.06311693,151.69,151.67,26.0]
[1750127837215,27.9,151.71,151.67,26.0]
[1750127837526,6.06311693,151.69,151.67,26.0]
[1750127838741,6.06311693,151.7,151.67,26.0]
[1750127838958,6.18,151.72,151.67,38.65633898]
[1750127839155,12.24311693,151.72,151.67,32.59322205]
[1750127839445,6.06311693,151.69,151.68,26.0]
[1750127840044,6.06311693,151.7,151.68,26.0]
[1750127840616,12.24311693,151.72,151.68,26.0]
[1750127840829,6.06311693,151.71,151.68,26.0]
[1750127841225,12.77111959,151.72,151.68,26.0]
[1750127841543,6.06311693,151.71,151.68,26.0]
[1750127842340,12.7711062,151.72,151.68,26.0]
[1750127842341,6.06311693,151.7,151.68,26.0]
[1750127843146,6.06311693,151.69,151.65,38.65717013]
[1750127843842,6.06311693,151.7,151.65,38.65717013]
[1750127844216,6.06311693,151.71,151.66,6.06311693]
[1750127844740,12.24311693,151.72,151.67,6.06311693]
[1750127845439,6.18,151.72,151.69,6.06311693]
[1750127845820,6.18,151.72,151.71,26.0]
[1750127846426,6.18,151.72,151.71,32.5915233]
[1750127846817,6.18,151.72,151.71,26.0]
[1750127847247,6.18,151.72,151.71,32.5915233]
[1750127847557,6.18,151.72,151.71,26.0]
[1750127847720,6.18,151.72,151.71,32.5915233]
[1750127848460,6.18,151.72,151.71,38.65464023]
[1750127849045,6.18,151.72,151.71,32.5915233]
[1750127849343,6.18,151.72,151.71,26.0]
[1750127849723,6.06311693,151.75,151.71,32.5915233]
[1750127850531,6.06311693,151.75,151.71,26.0]
[1750127851046,6.06311693,151.74,151.71,26.0]
[1750127851621,6.06311693,151.73,151.71,26.0]
[1750127851822,6.06311693,151.72,151.7,26.0]
[1750127852020,6.06311693,151.71,151.66,6.06311693]
[1750127852331,6.06311693,151.7,151.66,32.06311693]
[1750127852642,6.06311693,151.68,151.64,12.657683]
[1750127853027,6.06311693,151.68,151.64,38.657683]
[1750127853236,12.40311693,151.7,151.65,6.06311693]
[1750127853429,12.40311693,151.7,151.66,6.59369642]
[1750127853836,6.11709653,151.79,151.7,26.0]
[1750127854148,6.11709653,151.79,151.7,32.06311693]
[1750127854149,6.06311693,151.75,151.7,32.06311693]
[1750127854450,18.933972,151.76,151.7,26.0]
[1750127854655,6.06311693,151.74,151.7,26.0]
[1750127855327,6.06311693,151.73,151.7,26.0]
[1750127856151,6.06311693,151.74,151.7,26.0]
[1750127856530,17.78216802,151.75,151.7,26.0]
[1750127856752,12.93021083,151.75,151.7,26.0]
[1750127857054,6.06311693,151.73,151.7,26.0]
[1750127859758,6.06311693,151.73,151.69,26.0]
[1750127859943,6.06311693,151.72,151.69,26.0]
[1750127860256,6.06311693,151.71,151.67,32.59312835]
[1750127860654,6.06311693,151.7,151.66,6.59366079]
[1750127860829,6.06311693,151.68,151.64,6.59456607]
[1750127861237,18.933972,151.71,151.64,32.59456607]
[1750127861551,6.06311693,151.68,151.64,32.59456607]
[1750127861736,18.933972,151.71,151.64,32.59456607]
[1750127861946,6.06311693,151.69,151.64,38.657683]
[1750127862776,6.06311693,151.68,151.64,32.59456607]
[1750127862932,6.06311693,151.68,151.64,38.657683]
[1750127863243,1.5873,151.72,151.65,6.2052785]
[1750127863458,12.30311693,151.71,151.65,26.0]
[1750127863633,12.30311693,151.71,151.66,6.06311693]
[1750127863835,6.06311693,151.7,151.66,6.06311693]
[1750127864357,12.30311693,151.71,151.66,6.06311693]
[1750127865158,4.89178508,151.7,151.67,6.59326168]
[1750127865354,6.24,151.71,151.67,12.65637861]
[1750127865665,6.24,151.71,151.68,6.06311693]
[1750127866167,6.24,151.71,151.67,12.65637861]
[1750127866328,10.95999182,151.7,151.66,6.59362024]
[1750127866653,4.89650988,151.69,151.68,26.0]
[1750127870055,4.90115943,151.69,151.68,26.0]
[1750127870236,12.30311693,151.71,151.68,26.0]
[1750127870437,4.90278658,151.7,151.68,26.0]
[1750127870641,12.30311693,151.71,151.68,26.0]
[1750127870843,4.90271207,151.7,151.68,26.0]
[1750127871054,12.30311693,151.71,151.68,26.0]
[1750127871245,10.96511466,151.7,151.68,26.0]
[1750127871443,12.30311693,151.71,151.68,32.59280583]
[1750127871866,4.90377802,151.7,151.68,32.59280583]
[1750127872073,6.24,151.71,151.68,32.59280583]
[1750127872238,4.90377874,151.7,151.68,32.59280583]
[1750127872439,6.24,151.71,151.68,32.59280583]
[1750127872840,6.24,151.71,151.68,26.0]
[1750127873148,4.90456112,151.7,151.68,32.59279606]
[1750127873355,6.24,151.71,151.68,32.59279606]
[1750127873754,12.30311693,151.71,151.68,26.0]
[1750127874342,4.90507177,151.7,151.68,26.0]
[1750127874679,6.06311693,151.7,151.68,26.0]
[1750127874853,6.24,151.71,151.68,26.0]
[1750127875041,12.30311693,151.71,151.68,26.0]
[1750127875242,4.90504905,151.7,151.68,26.0]
[1750127875441,12.30311693,151.71,151.68,26.0]
[1750127875677,4.90401964,151.7,151.68,26.0]
[1750127875855,12.30311693,151.71,151.68,26.0]
[1750127876055,4.90354834,151.7,151.68,26.0]
[1750127876247,12.30311693,151.71,151.68,26.0]
[1750127876449,4.90426641,151.7,151.68,26.0]
[1750127876647,12.30311693,151.71,151.68,26.0]
[1750127877885,4.90379319,151.7,151.68,32.59270473]
[1750127878044,6.24,151.71,151.68,38.65582166]
[1750127878381,6.24,151.71,151.68,32.59270473]
[1750127880092,6.24,151.71,151.68,38.65582166]
[1750127880248,0.28432314,151.75,151.7,6.06311693]
[1750127880249,4.90470106,151.74,151.7,6.06311693]
[1750127880451,4.90470106,151.74,151.69,6.06311693]
[1750127880452,4.90433934,151.73,151.69,6.06311693]
[1750127880653,6.06311693,151.74,151.69,6.06311693]
[1750127880854,4.90449753,151.73,151.69,6.06311693]
[1750127881174,6.06311693,151.74,151.69,6.06311693]
[1750127881367,4.90596941,151.73,151.69,6.06311693]
[1750127881571,27.6,151.75,151.7,6.06311693]
[1750127881886,4.90644216,151.74,151.71,6.06311693]
[1750127882055,6.06311693,151.75,151.72,6.59108884]
[1750127882262,4.90689465,151.74,151.72,6.59108884]
[1750127882585,6.06311693,151.74,151.71,6.59136334]
[1750127882872,4.90600654,151.73,151.7,12.65491261]
[1750127883211,4.90655354,151.75,151.72,6.06311693]
[1750127883480,12.30311693,151.76,151.71,6.06311693]
[1750127883666,4.90569934,151.75,151.71,6.06311693]
[1750127883853,12.30311693,151.76,151.71,6.06311693]
[1750127884054,10.96874253,151.75,151.71,6.59140547]
[1750127884249,18.933972,151.73,151.65,6.59413122]
[1750127884456,6.06311693,151.69,151.65,12.65724815]
[1750127884666,6.06311693,151.7,151.68,26.0]
[1750127884867,6.06311693,151.7,151.66,6.06311693]
[1750127885073,4.90338699,151.69,151.65,6.59413122]
[1750127885251,6.06311693,151.69,151.68,26.0]
[1750127885453,17.20639054,151.69,151.64,12.65726145]
[1750127885772,17.20639054,151.69,151.67,26.0]
[1750127885773,12.30311693,151.69,151.67,26.0]
[1750127886085,12.30311693,151.69,151.68,26.0]
[1750127886280,17.2004403,151.69,151.68,26.0]
[1750127886494,17.2004403,151.69,151.67,26.0]
[1750127886669,6.06311693,151.68,151.67,26.0]
[1750127887554,10.95917229,151.68,151.67,26.0]
[1750127887770,6.06311693,151.68,151.67,26.0]
[1750127888079,10.95950981,151.68,151.67,26.0]
[1750127888388,6.06311693,151.68,151.67,26.0]
[1750127889378,12.30311693,151.69,151.68,26.0]
[1750127889583,17.19944362,151.69,151.68,26.0]
[1750127890260,12.30311693,151.69,151.68,26.0]
[1750127890462,17.19944362,151.69,151.68,26.0]
[1750127890667,12.30311693,151.69,151.68,26.0]
[1750127890866,17.19944362,151.69,151.68,26.0]
[1750127891186,12.30311693,151.69,151.68,26.0]
[1750127891872,17.20183704,151.69,151.68,26.0]
[1750127892082,12.30311693,151.69,151.68,26.0]
[1750127892283,17.20183704,151.69,151.68,26.0]
[1750127892586,12.30311693,151.69,151.68,26.0]
[1750127892784,11.13872011,151.69,151.68,26.0]
[1750127892971,12.30311693,151.69,151.68,26.0]
[1750127893962,6.24,151.69,151.68,26.0]
[1750127894984,4.89918479,151.71,151.68,12.65594393]
[1750127895189,12.18311693,151.72,151.68,6.592827]
[1750127895373,4.89939413,151.71,151.68,6.592827]
[1750127895687,12.18311693,151.72,151.68,12.65594393]
[1750127895988,4.89974437,151.71,151.68,12.65594393]
[1750127896163,6.06311693,151.71,151.67,6.06311693]
[1750127896359,10.96315994,151.7,151.67,26.0]
[1750127896579,6.06311693,151.7,151.67,26.0]
[1750127897591,10.96392505,151.69,151.67,26.0]
[1750127897890,6.06311693,151.68,151.64,12.657683]
[1750127898080,6.06311693,151.68,151.64,38.657683]
[1750127898597,10.96325782,151.69,151.64,38.657683]
[1750127898770,6.06311693,151.69,151.64,38.657683]
[1750127898975,6.06311693,151.68,151.64,38.657683]
[1750127899689,6.06311693,151.67,151.66,26.0]
[1750127899993,10.96450319,151.67,151.66,26.0]
[1750127900573,4.90138626,151.67,151.66,26.0]
[1750127900785,10.96450319,151.67,151.66,26.0]
[1750127904083,10.96450319,151.67,151.59,1.6594]
[1750127904084,17.55784278,151.67,151.59,1.6594]
[1750127904284,6.06311693,151.64,151.59,14.31914495]
[1750127904472,6.06311693,151.64,151.62,26.0]
[1750127905090,4.90099148,151.64,151.62,26.0]
[1750127905297,6.06311693,151.64,151.62,26.0]
[1750127905592,10.96203593,151.64,151.6,6.59610355]
[1750127905895,6.06311693,151.64,151.6,6.59610355]
[1750127906187,27.52,151.65,151.6,6.59610355]
[1750127906188,27.52,151.65,151.61,6.06311693]
[1750127906392,33.58311693,151.65,151.61,6.06311693]
[1750127906769,27.52,151.65,151.63,26.0]
[1750127907397,38.48363323,151.66,151.63,26.0]
[1750127907626,6.06311693,151.65,151.6,32.06311693]
[1750127907781,6.06311693,151.64,151.63,26.0]
[1750127908103,6.06311693,151.65,151.63,26.0]
[1750127909790,6.06311693,151.64,151.61,6.59575758]
[1750127911283,10.96442815,151.65,151.61,6.59575758]
[1750127911580,33.58311693,151.65,151.61,6.59575758]
[1750127912270,6.06311693,151.64,151.6,32.59618881]
[1750127912475,6.06311693,151.63,151.6,26.0]
[1750127912892,6.06311693,151.63,151.6,32.59627759]
[1750127913092,27.52,151.65,151.6,32.59627759]
[1750127913093,6.06311693,151.64,151.6,32.59627759]
[1750127913697,6.06311693,151.66,151.61,6.06311693]
[1750127913881,33.58311693,151.66,151.61,6.06311693]
[1750127914197,6.06311693,151.65,151.6,38.65939452]
[1750127915399,27.52,151.66,151.6,38.65939452]
[1750127915701,6.06311693,151.65,151.6,38.65939452]
[1750127916805,6.06311693,151.64,151.6,38.65939452]
[1750127916983,6.06311693,151.64,151.6,32.59627759]
[1750127917314,6.06311693,151.63,151.6,32.59627759]
[1750127917482,6.06311693,151.63,151.6,6.59627759]
[1750127918079,6.06311693,151.61,151.59,26.0]
[1750127918907,6.06311693,151.61,151.59,32.59668857]
[1750127919305,6.06311693,151.61,151.59,26.0]
[1750127919507,6.14,151.62,151.55,14.21582528]
[1750127919694,6.14,151.62,151.6,6.06311693]
[1750127919887,6.14,151.62,151.61,6.06311693]
[1750127920611,17.10085642,151.67,151.61,6.06311693]
[1750127920839,6.14,151.67,151.63,6.06311693]
[1750127921303,6.14,151.67,151.62,32.59543595]
[1750127921486,6.06311693,151.66,151.62,38.65855288]
[1750127922322,6.06311693,151.65,151.62,26.0]
[1750127922695,6.06311693,151.65,151.62,32.59536176]
[1750127923016,6.06311693,151.64,151.62,26.0]
[1750127923216,6.06311693,151.65,151.62,26.0]
[1750127925504,6.06311693,151.65,151.62,32.5953256]
[1750127926220,17.6315402,151.67,151.62,38.65844253]
[1750127926221,11.03818403,151.67,151.62,38.65844253]
[1750127926409,33.66,151.67,151.63,6.06311693]
[1750127926600,6.14,151.67,151.63,6.06311693]
[1750127926796,12.20311693,151.67,151.62,38.65844253]
[1750127927529,4.89818403,151.68,151.66,32.06311693]
[1750127927694,11.03068376,151.75,151.7,26.0]
[1750127927897,6.46,151.78,151.74,32.06311693]
[1750127928196,10.97141927,151.77,151.72,32.06311693]
[1750127928396,6.46,151.78,151.73,6.06311693]
[1750127928397,12.52311693,151.78,151.73,6.06311693]
[1750127928628,6.06311693,151.75,151.68,18.64964886]
[1750127928800,6.06311693,151.72,151.69,0.14216157]
[1750127928997,6.06311693,151.7,151.62,24.60111549]
[1750127929229,6.46,151.71,151.63,0.14216157]
[1750127929519,28.36,151.7,151.64,26.0]
[1750127929730,6.06311693,151.68,151.64,6.06311693]
[1750127929905,6.06311693,151.67,151.62,14.17564253]
[1750127930337,6.06311693,151.67,151.63,26.0]
[1750127930914,6.06311693,151.67,151.63,32.59493439]
[1750127931115,6.06311693,151.68,151.63,38.65805132]
[1750127931306,6.06311693,151.69,151.63,32.59493439]
[1750127931510,6.06311693,151.67,151.63,38.65805132]
[1750127932445,6.06311693,151.67,151.63,32.06311693]
[1750127932742,6.06311693,151.67,151.63,26.0]
[1750127933233,4.91109253,151.68,151.63,26.0]
[1750127933538,6.06311693,151.67,151.63,26.0]
[1750127933916,6.06311693,151.66,151.63,26.0]
[1750127934718,6.06311693,151.65,151.63,26.0]
[1750127934918,6.06311693,151.64,151.63,26.0]
[1750127938135,11.50359941,151.69,151.62,6.06311693]
[1750127938343,6.06311693,151.66,151.62,6.06311693]
[1750127938639,6.06311693,151.65,151.61,32.06311693]
[1750127939009,6.06311693,151.65,151.62,6.59536647]
[1750127941241,6.06311693,151.66,151.62,12.6584834]
[1750127941553,6.06311693,151.67,151.62,12.6584834]
[1750127941924,6.06311693,151.66,151.62,12.6584834]
[1750127942318,6.06311693,151.65,151.62,6.59536647]
[1750127942953,6.46,151.71,151.66,26.0]
[1750127943129,4.92436617,151.7,151.67,6.06311693]
[1750127943336,6.46,151.71,151.69,6.06311693]
[1750127943549,6.46,151.71,151.68,6.06311693]
[1750127943846,6.46,151.71,151.67,0.14216157]
[1750127943847,6.06311693,151.75,151.7,6.06311693]
[1750127944053,6.06311693,151.75,151.71,6.06311693]
[1750127944843,6.06311693,151.75,151.71,12.65442904]
[1750127945237,6.46,151.76,151.74,32.06311693]
[1750127945750,6.46,151.76,151.75,6.06311693]
[1750127946049,6.46,151.76,151.74,26.0]
[1750127946236,6.46,151.76,151.74,32.06311693]
[1750127946944,6.46,151.76,151.74,38.6533048]
[1750127947136,12.52311693,151.76,151.73,6.59059721]
[1750127947334,12.52311693,151.76,151.75,26.0]
[1750127947519,6.46,151.76,151.75,26.0]
[1750127948040,6.46,151.76,151.73,26.0]
[1750127948625,6.06311693,151.75,151.73,26.0]
[1750127949233,6.06311693,151.74,151.71,26.0]
[1750127949525,6.06311693,151.73,151.69,12.65539803]
[1750127949743,6.06311693,151.74,151.7,32.06311693]
[1750127950837,6.06311693,151.74,151.7,35.03288737]
[1750127950838,9.03288737,151.74,151.7,35.03288737]
[1750127951043,9.03288737,151.74,151.71,6.5915233]
[1750127951344,9.03288737,151.75,151.71,15.62441067]
[1750127951752,9.03288737,151.74,151.71,6.5915233]
[1750127953057,9.03288737,151.75,151.71,15.62441067]
[1750127953552,6.46,151.76,151.71,15.62441067]
[1750127953853,9.03288737,151.75,151.7,32.59186799]
[1750127954036,9.03288737,151.75,151.71,9.03288737]
[1750127955433,9.03288737,151.75,151.72,6.59108884]
[1750127956249,6.46,151.76,151.72,6.59108884]
[1750127956457,9.03288737,151.75,151.72,6.59108884]
[1750127957046,15.49288737,151.76,151.72,6.59108884]
[1750127957933,9.03288737,151.74,151.7,26.0]
[1750127958132,9.03288737,151.74,151.7,35.03288737]
[1750127958636,6.46,151.76,151.72,9.03288737]
[1750127958960,9.03288737,151.74,151.7,41.62470055]
[1750127960352,6.46,151.76,151.7,41.62470055]
[1750127960557,9.03288737,151.75,151.7,41.62470055]
[1750127962361,9.03288737,151.74,151.7,41.62470055]
[1750127962737,13.04951738,151.76,151.7,41.62470055]
[1750127962939,9.03288737,151.74,151.7,41.62470055]
[1750127964241,6.46,151.76,151.7,41.62470055]
[1750127964242,37.17288737,151.75,151.7,41.62470055]
[1750127964763,28.14,151.75,151.71,9.03288737]
[1750127965375,28.14,151.75,151.72,9.03288737]
[1750127965868,15.49288737,151.76,151.72,9.03288737]
[1750127966040,15.49288737,151.76,151.73,6.59065445]
[1750127966936,6.46,151.76,151.73,6.59065445]
[1750127967134,15.49288737,151.76,151.72,6.59108884]
[1750127967339,6.46,151.76,151.72,6.59108884]
[1750127967539,15.49288737,151.76,151.72,6.59108884]
[1750127968555,9.03288737,151.75,151.72,6.59108884]
[1750127968878,9.03288737,151.74,151.7,26.0]
[1750127969091,9.03288737,151.73,151.7,26.0]
[1750127969741,9.03288737,151.73,151.7,32.59186257]
[1750127969942,9.03288737,151.72,151.7,26.0]
[1750127970171,9.03288737,151.72,151.69,6.59211229]
[1750127970756,9.03288737,151.71,151.68,32.59268823]
[1750127971069,6.02471864,151.71,151.68,32.59268823]
[1750127971483,6.02471864,151.69,151.64,6.02471864]
[1750127971784,6.02471864,151.67,151.64,6.59456607]
[1750127971943,6.02471864,151.66,151.6,16.48989317]
[1750127972148,6.02471864,151.65,151.61,6.02471864]
[1750127972346,6.02471864,151.66,151.62,26.0]
[1750127973150,6.02471864,151.67,151.63,6.02471864]
[1750127973357,6.02471864,151.68,151.64,6.02471864]
[1750127973547,6.02471864,151.68,151.63,6.02471864]
[1750127974163,34.58,151.69,151.65,6.02471864]
[1750127974385,6.52,151.69,151.66,6.02471864]
[1750127974544,12.54471864,151.69,151.65,26.0]
[1750127974750,12.54471864,151.69,151.65,32.02471864]
[1750127975193,12.54471864,151.69,151.66,6.59369642]
[1750127976677,12.54471864,151.69,151.65,32.59408894]
[1750127976678,6.02471864,151.67,151.65,32.59408894]
[1750127976891,6.02471864,151.68,151.65,32.59408894]
[1750127977842,6.02471864,151.68,151.65,26.0]
[1750127978047,6.02471864,151.67,151.63,32.59491325]
[1750127978667,6.02471864,151.65,151.62,6.59531092]
[1750127978949,6.02471864,151.65,151.61,6.5957212]
[1750127979371,6.02471864,151.65,151.61,32.5957212]
[1750127979557,6.02471864,151.65,151.61,38.62043984]
[1750127979971,6.02471864,151.68,151.63,6.02471864]
[1750127980165,6.02471864,151.68,151.62,6.59525324]
[1750127980474,6.02471864,151.67,151.63,6.02471864]
[1750127980847,6.02471864,151.66,151.62,12.61997188]
[1750127981580,6.02471864,151.65,151.61,32.59571933]
[1750127981873,6.02471864,151.64,151.61,32.59571933]
[1750127982079,6.02471864,151.64,151.61,26.0]
[1750127982278,6.02471864,151.64,151.61,32.59577394]
[1750127983594,28.06,151.66,151.61,32.59577394]
[1750127983803,6.02471864,151.64,151.61,32.59577394]
[1750127985694,6.02471864,151.67,151.62,6.02471864]
[1750127985873,6.02471864,151.67,151.61,32.59577394]
[1750127985874,6.02471864,151.67,151.63,6.02471864]
[1750127986388,6.02471864,151.67,151.62,6.02471864]
[1750127986775,6.02471864,151.67,151.63,6.59500098]
[1750127987170,6.5403,151.71,151.63,6.59500098]
[1750127987171,6.0762,151.75,151.65,26.0]
[1750127987363,6.02471864,151.72,151.66,26.0]
[1750127987566,6.02471864,151.71,151.66,26.0]
[1750127987767,6.02471864,151.7,151.66,32.02471864]
[1750127988084,6.02471864,151.7,151.66,26.0]
[1750127988279,6.02471864,151.7,151.67,6.59326168]
[1750127988591,6.02471864,151.71,151.67,12.61798032]
[1750127989267,6.80432314,151.74,151.67,6.59326168]
[1750127989494,6.02471864,151.72,151.68,6.02471864]
[1750127990400,6.02471864,151.71,151.67,6.02471864]
[1750127990570,6.02471864,151.72,151.67,6.02471864]
[1750127991283,6.02471864,151.72,151.68,6.02471864]
[1750127991804,6.02471864,151.73,151.68,6.02471864]
[1750127992474,6.02471864,151.73,151.69,6.59239237]
[1750127993420,6.02471864,151.72,151.69,6.59239237]
[1750127993898,6.02471864,151.7,151.66,32.02471864]
[1750127994500,6.02471864,151.7,151.66,26.0]
[1750127994802,6.02471864,151.69,151.66,26.0]
[1750127995575,6.02471864,151.69,151.66,32.59362993]
[1750127997799,6.02471864,151.69,151.66,26.0]
[1750127998780,6.02471864,151.69,151.65,6.59400568]
[1750127999101,6.02471864,151.68,151.65,32.59400568]
[1750128001673,6.02471864,151.66,151.6,7.56591864]
[1750128001879,6.02471864,151.64,151.6,6.59630606]
[1750128002099,6.02471864,151.63,151.62,26.0]
[1750128002295,6.02471864,151.63,151.6,6.59630606]
[1750128002492,6.02471864,151.63,151.62,26.0]
[1750128003176,13.29361218,151.67,151.62,12.62005928]
[1750128003177,6.7,151.67,151.62,12.62005928]
[1750128003376,6.7,151.67,151.62,32.59534064]
[1750128003682,6.7,151.67,151.66,6.02471864]
[1750128003878,6.7,151.67,151.65,32.02471864]
[1750128004494,6.7,151.67,151.66,6.59369642]
[1750128006120,6.7,151.67,151.65,32.59407235]
[1750128006814,6.7,151.67,151.65,38.61879099]
[1750128007396,6.7,151.67,151.65,32.59407235]
[1750128008443,6.7,151.67,151.65,38.61879099]
[1750128008929,6.7,151.67,151.65,32.59407235]
[1750128009135,6.7,151.67,151.65,38.61879099]
[1750128009291,6.7,151.67,151.65,32.59407235]
[1750128009892,6.7,151.67,151.65,38.61879099]
[1750128011037,6.7,151.67,151.65,32.59407235]
[1750128014323,6.7,151.67,151.65,38.61879099]
[1750128014619,6.7,151.67,151.65,32.59407235]
[1750128016019,6.02471864,151.69,151.65,32.59407235]
[1750128018220,6.02471864,151.68,151.65,32.59407235]
[1750128018414,6.7,151.7,151.65,32.59407235]
[1750128018604,6.02471864,151.68,151.65,32.59407235]
[1750128019107,6.7,151.7,151.65,32.59407235]
[1750128019297,6.02471864,151.69,151.65,38.61879099]
[1750128019897,6.02471864,151.69,151.65,32.59407235]
[1750128020114,6.02471864,151.69,151.65,38.61879099]
[1750128020304,6.02471864,151.69,151.65,32.59407235]
[1750128020502,11.62805429,151.7,151.65,32.59407235]
[1750128020708,17.65277293,151.7,151.65,38.61879099]
[1750128020902,11.62805429,151.7,151.67,6.02471864]
[1750128021200,6.7,151.7,151.68,6.02471864]
[1750128022127,6.7,151.7,151.68,12.6171249]
[1750128022617,6.7,151.7,151.68,6.59240626]
[1750128022920,6.7,151.7,151.66,12.61841506]
[1750128023124,6.7,151.7,151.66,6.59369642]
[1750128023338,6.7,151.7,151.67,6.02471864]
[1750128023717,6.7,151.7,151.68,6.592827]
[1750128029021,6.7,151.7,151.69,6.02471864]
[1750128029941,6.02471864,151.74,151.69,6.02471864]
[1750128030143,6.02471864,151.75,151.7,6.02471864]
[1750128031153,6.02471864,151.74,151.71,6.5915233]
[1750128031949,6.02471864,151.73,151.7,6.59184301]
[1750128033345,6.02471864,151.71,151.65,6.02471864]
[1750128033658,6.02471864,151.71,151.63,18.05650879]
[1750128033659,6.02471864,151.68,151.64,6.59456607]
[1750128033962,6.02471864,151.68,151.67,26.0]
[1750128034161,6.02471864,151.68,151.64,6.59456607]
[1750128034327,6.02471864,151.67,151.64,6.59456607]
[1750128034724,6.02471864,151.67,151.64,32.59456607]
[1750128035945,37.11144139,151.7,151.64,32.59456607]
[1750128036147,6.02471864,151.67,151.64,32.59456607]
[1750128036355,6.02471864,151.65,151.6,22.51460432]
[1750128036654,6.02471864,151.65,151.63,26.0]
[1750128037026,4.92549669,151.68,151.63,26.0]
[1750128037251,6.02471864,151.66,151.64,6.59456607]
[1750128037831,4.92549669,151.69,151.64,6.59456607]
[1750128038042,6.02471864,151.66,151.64,6.59456607]
[1750128038555,6.02471864,151.67,151.64,6.59456607]
[1750128039954,6.02471864,151.66,151.64,6.59456607]